[Event "44th Chess Olympiad Women 2022"]
[Site "Chennai"]
[Date "2022.08.06"]
[Round "8.44"]
[White "De la Riva Real, Ariadna"]
[Black "Chaves, Jussara"]
[Result "0-1"]
[WhiteElo "1649"]
[BlackElo "1933"]
[Annotator "NA RC"]
[PlyCount "84"]
[EventDate "2022.??.??"]
[TimeControl "60"]

1. e4 {[%emt 0:00:02]} d5 {[%emt 0:00:42]} 2. exd5 {[%emt 0:00:12]} Qxd5 {
[%emt 0:00:11]} 3. Nf3 {[%emt 0:00:20]} Bg4 {[%emt 0:03:23]} 4. Be2 {[%emt 0:
00:00]} Nc6 {[%emt 0:00:56]} 5. d4 {[%emt 0:02:18]} O-O-O {[%emt 0:03:01]} 6.
c4 {[%emt 0:04:12]} Qf5 {[%emt 0:02:17]} 7. Be3 {[%emt 0:06:21]} e5 {[%emt 0:
00:00]} 8. d5 {[%emt 0:11:11]} Nb4 {[%emt 0:12:10]} 9. O-O {[%emt 0:09:33]} e4
{[%emt 0:07:14]} 10. Nd4 {[%emt 0:07:33]} Bxe2 {[%emt 0:01:34]} 11. Nxe2 {
[%emt 0:03:57]} Bd6 {[%emt 0:12:45]} 12. Ng3 {[%emt 0:08:20]} Bxg3 {[%emt 0:00:
00]} 13. fxg3 {[%emt 0:01:24]} Qd7 {[%emt 0:00:17]} 14. Nc3 {[%emt 0:02:25]} f5
{[%emt 0:01:33]} 15. Nb5 {[%emt 0:03:53]} a6 {[%emt 0:10:42]} 16. Nd4 {[%emt 0:
00:00]} Ne7 {[%emt 0:04:58]} 17. Ne6 {[%emt 0:03:02]} Nbxd5 {[%emt 0:05:57]}
18. cxd5 {[%emt 0:04:51]} Nxd5 {[%emt 0:00:14]} 19. Nc5 {[%emt 0:00:54]} Qb5 {
[%emt 0:04:14]} 20. Bd4 {[%emt 0:04:54]} Ne3 {[%emt 0:02:47]} 21. a4 {[%emt 0:
00:00]} Qxf1+ {[%emt 0:02:44]} 22. Qxf1 {[%emt 0:00:37]} Nxf1 {[%emt 0:00:02]}
23. Bxg7 {[%emt 0:01:18]} Nd2 {[%emt 0:04:07]} 24. Bxh8 {[%emt 0:02:12]} Rxh8 {
[%emt 0:00:02]} 25. Kf2 {[%emt 0:00:54]} Re8 {[%emt 0:01:35]} 26. b4 {[%emt 0:
00:00]} Nc4 {[%emt 0:02:23]} 27. b5 {[%emt 0:00:21]} Re5 {[%emt 0:01:01]} 28.
Nb3 {[%emt 0:01:30]} axb5 {[%emt 0:00:13]} 29. Nd4 {[%emt 0:00:41]} bxa4 {
[%emt 0:00:59]} 30. Rxa4 {[%emt 0:00:05]} Nb6 {[%emt 0:00:14]} 31. Ra3 {
[%emt 0:00:30]} c5 {[%emt 0:01:28]} 32. Nb5 {[%emt 0:00:56]} Rd5 {[%emt 0:00:
00]} 33. Ra2 {[%emt 0:00:34]} c4 {[%emt 0:00:22]} 34. Nc3 {[%emt 0:00:17]} Rd3
{[%emt 0:00:28]} 35. Ne2 {[%emt 0:00:18]} c3 {[%emt 0:00:47]} 36. Nf4 {[%emt 0:
00:00]} Rd2+ {[%emt 0:00:39]} 37. Rxd2 {[%emt 0:00:09]} cxd2 {[%emt 0:00:02]}
38. Ke2 {[%emt 0:00:08]} e3 {[%emt 0:00:43]} 39. Nd3 {[%emt 0:00:45]} Nc4 {
[%emt 0:00:25]} 40. h3 {[%emt 0:00:42]} h5 {[%emt 0:00:24]} 41. Kd1 {[%emt 0:
00:00]} b5 {[%emt 0:31:05]} 42. Ke2 {[%emt 0:01:34]} b4 {[%emt 0:00:00]} 0-1

[Event "44th Chess Olympiad Women 2022"]
[Site "Chennai"]
[Date "2022.08.06"]
[Round "8.44"]
[White "Galera Serra, Maria"]
[Black "Silva, Ana Ines Teixeira D"]
[Result "0-1"]
[WhiteElo "1464"]
[BlackElo "1775"]
[Annotator "NA RC"]
[PlyCount "54"]
[EventDate "2022.??.??"]
[TimeControl "60"]

1. e4 {[%emt 0:00:02]} e5 {[%emt 0:00:06]} 2. Nf3 {[%emt 0:00:05]} Nc6 {
[%emt 0:00:05]} 3. Bc4 {[%emt 0:00:06]} Nf6 {[%emt 0:00:07]} 4. d3 {[%emt 0:00:
00]} Bc5 {[%emt 0:00:21]} 5. Be3 {[%emt 0:02:47]} Bxe3 {[%emt 0:00:31]} 6. fxe3
{[%emt 0:00:13]} d6 {[%emt 0:01:52]} 7. h3 {[%emt 0:00:10]} Na5 {[%emt 0:04:55]
} 8. Nbd2 {[%emt 0:01:19]} Nxc4 {[%emt 0:00:37]} 9. Nxc4 {[%emt 0:00:12]} Be6 {
[%emt 0:02:16]} 10. Ncd2 {[%emt 0:00:33]} h6 {[%emt 0:12:25]} 11. d4 {[%emt 0:
00:00]} O-O {[%emt 0:05:51]} 12. Qe2 {[%emt 0:14:51]} exd4 {[%emt 0:01:42]} 13.
exd4 {[%emt 0:05:31]} d5 {[%emt 0:04:59]} 14. O-O-O {[%emt 0:01:54]} c5 {
[%emt 0:11:03]} 15. g4 {[%emt 0:13:46]} Nxe4 {[%emt 0:06:22]} 16. Nxe4 {
[%emt 0:01:54]} dxe4 {[%emt 0:00:06]} 17. Qxe4 {[%emt 0:00:19]} Bd5 {[%emt 0:
00:00]} 18. Qf4 {[%emt 0:07:15]} Qa5 {[%emt 0:10:59]} 19. a3 {[%emt 0:04:22]}
c4 {[%emt 0:04:32]} 20. Rhf1 {[%emt 0:02:14]} c3 {[%emt 0:01:33]} 21. Qd6 {
[%emt 0:14:29]} cxb2+ {[%emt 0:03:13]} 22. Kxb2 {[%emt 0:00:11]} Rac8 {[%emt 0:
00:00]} 23. Qb4 {[%emt 0:02:16]} Qc7 {[%emt 0:00:00]} 24. Rc1 {[%emt 0:09:18]}
a5 {[%emt 0:01:59]} 25. Qd2 {[%emt 0:01:12]} Qc4 {[%emt 0:00:42]} 26. Ra1 {
[%emt 0:00:57]} Qb5+ {[%emt 0:00:12]} 27. Kc1 {[%emt 0:00:28]} Qxf1+ {[%emt 0:
00:00]} 0-1

[Event "44th Chess Olympiad Women 2022"]
[Site "Chennai"]
[Date "2022.08.06"]
[Round "8.44"]
[White "Pipiras, Filipa Fortuna"]
[Black "Henderson de La Fuente, Andrea"]
[Result "1/2-1/2"]
[WhiteElo "2139"]
[BlackElo "1962"]
[Annotator "NA RC"]
[PlyCount "106"]
[EventDate "2022.??.??"]
[TimeControl "60"]

1. d4 {[%emt 0:00:24]} Nf6 {[%emt 0:00:24]} 2. c4 {[%emt 0:00:39]} e6 {[%emt 0:
00:00]} 3. Nc3 {[%emt 0:00:37]} Bb4 {[%emt 0:00:13]} 4. Qc2 {[%emt 0:01:11]}
O-O {[%emt 0:00:48]} 5. a3 {[%emt 0:02:12]} Bxc3+ {[%emt 0:00:43]} 6. Qxc3 {
[%emt 0:00:15]} b6 {[%emt 0:01:03]} 7. Bg5 {[%emt 0:01:27]} Bb7 {[%emt 0:00:51]
} 8. f3 {[%emt 0:02:01]} h6 {[%emt 0:06:51]} 9. Bh4 {[%emt 0:01:26]} d5 {
[%emt 0:00:54]} 10. cxd5 {[%emt 0:02:43]} exd5 {[%emt 0:01:05]} 11. e3 {
[%emt 0:01:00]} Nbd7 {[%emt 0:03:04]} 12. Bd3 {[%emt 0:06:11]} Re8 {[%emt 0:00:
00]} 13. Ne2 {[%emt 0:04:19]} Rc8 {[%emt 0:12:38]} 14. Bf5 {[%emt 0:32:59]} c5
{[%emt 0:12:19]} 15. Bxf6 {[%emt 0:00:00]} gxf6 {[%emt 0:00:12]} 16. Kf2 {
[%emt 0:00:00]} cxd4 {[%emt 0:07:35]} 17. Qxd4 {[%emt 0:00:00]} Rc4 {[%emt 0:
00:00]} 18. Qd2 {[%emt 0:00:00]} Nc5 {[%emt 0:02:08]} 19. Nd4 {[%emt 0:02:16]}
Re5 {[%emt 0:09:32]} 20. Bb1 {[%emt 0:05:11]} Ba6 {[%emt 0:05:10]} 21. Re1 {
[%emt 0:13:42]} Qe8 {[%emt 0:13:40]} 22. h4 {[%emt 0:11:13]} h5 {[%emt 0:02:56]
} 23. Ra2 {[%emt 0:06:36]} Qa4 {[%emt 0:08:18]} 24. b3 {[%emt 0:02:23]} Nxb3 {
[%emt 0:00:31]} 25. Nxb3 {[%emt 0:00:40]} Qxb3 {[%emt 0:00:19]} 26. Bd3 {
[%emt 0:01:06]} d4 {[%emt 0:06:31]} 27. e4 {[%emt 0:00:58]} Ra4 {[%emt 0:00:33]
} 28. Bxa6 {[%emt 0:00:43]} Rxa6 {[%emt 0:00:02]} 29. Rc1 {[%emt 0:00:50]} Rc5
{[%emt 0:01:26]} 30. Rxc5 {[%emt 0:00:21]} bxc5 {[%emt 0:00:01]} 31. Rb2 {
[%emt 0:00:16]} Qe3+ {[%emt 0:00:58]} 32. Qxe3 {[%emt 0:00:26]} dxe3+ {[%emt 0:
00:00]} 33. Kxe3 {[%emt 0:00:10]} Rxa3+ {[%emt 0:00:04]} 34. Kd2 {[%emt 0:00:
00]} Kg7 {[%emt 0:01:45]} 35. Rb5 {[%emt 0:01:02]} Ra2+ {[%emt 0:00:50]} 36.
Kd3 {[%emt 0:00:19]} Rxg2 {[%emt 0:00:35]} 37. Rxc5 {[%emt 0:00:10]} Ra2 {
[%emt 0:00:54]} 38. Rxh5 {[%emt 0:00:13]} a5 {[%emt 0:00:15]} 39. Ke3 {[%emt 0:
00:00]} a4 {[%emt 0:00:30]} 40. Ra5 {[%emt 0:00:08]} a3 {[%emt 0:00:35]} 41.
Kf4 {[%emt 0:04:48]} Ra1 {[%emt 0:05:27]} 42. Kf5 {[%emt 0:02:31]} a2 {[%emt 0:
00:00]} 43. h5 {[%emt 0:03:07]} Rf1 {[%emt 0:08:59]} 44. Rxa2 {[%emt 0:00:37]}
Rxf3+ {[%emt 0:00:04]} 45. Kg4 {[%emt 0:00:11]} Rf1 {[%emt 0:00:38]} 46. Ra5 {
[%emt 0:01:05]} Rg1+ {[%emt 0:00:44]} 47. Kf4 {[%emt 0:00:19]} Kh6 {[%emt 0:00:
00]} 48. Rf5 {[%emt 0:00:40]} Rf1+ {[%emt 0:00:52]} 49. Kg4 {[%emt 0:00:14]}
Rxf5 {[%emt 0:02:36]} 50. Kxf5 {[%emt 0:01:01]} Kxh5 {[%emt 0:00:05]} 51. Kxf6
{[%emt 0:00:11]} Kg4 {[%emt 0:00:07]} 52. Kxf7 {[%emt 0:00:27]} Kf4 {[%emt 0:
00:00]} 53. Kf6 {[%emt 0:00:06]} Kxe4 {[%emt 0:00:03]} 1/2-1/2

[Event "44th Chess Olympiad Women 2022"]
[Site "Chennai"]
[Date "2022.08.06"]
[Round "8.45"]
[White "Burbach, Anya Belle"]
[Black "Rodriguez Arrieta, Maria Elena"]
[Result "0-1"]
[WhiteElo "1375"]
[BlackElo "1849"]
[Annotator "NA RC"]
[PlyCount "42"]
[EventDate "2022.??.??"]
[TimeControl "60"]

1. e4 {[%emt 0:00:08]} e5 {[%emt 0:00:16]} 2. Nc3 {[%emt 0:00:28]} Nf6 {
[%emt 0:00:06]} 3. Bc4 {[%emt 0:00:43]} Bc5 {[%emt 0:00:11]} 4. d3 {[%emt 0:00:
00]} d6 {[%emt 0:00:53]} 5. h3 {[%emt 0:04:03]} O-O {[%emt 0:05:04]} 6. f4 {
[%emt 0:01:14]} c6 {[%emt 0:00:30]} 7. fxe5 {[%emt 0:07:06]} dxe5 {[%emt 0:00:
00]} 8. Nf3 {[%emt 0:01:05]} Nbd7 {[%emt 0:03:01]} 9. Qe2 {[%emt 0:03:58]} Nh5
{[%emt 0:04:51]} 10. Rh2 {[%emt 0:08:34]} Ng3 {[%emt 0:00:28]} 11. Qd1 {
[%emt 0:02:12]} b5 {[%emt 0:01:22]} 12. Bb3 {[%emt 0:00:28]} Qb6 {[%emt 0:00:
00]} 13. d4 {[%emt 0:13:27]} exd4 {[%emt 0:00:15]} 14. Ne2 {[%emt 0:02:03]}
Nxe4 {[%emt 0:00:20]} 15. Qd3 {[%emt 0:05:32]} Ndf6 {[%emt 0:04:07]} 16. g4 {
[%emt 0:06:42]} Re8 {[%emt 0:04:51]} 17. a3 {[%emt 0:11:37]} Bd6 {[%emt 0:00:
00]} 18. Rg2 {[%emt 0:01:09]} c5 {[%emt 0:00:06]} 19. Ba2 {[%emt 0:06:03]} Bb7
{[%emt 0:01:18]} 20. b3 {[%emt 0:06:43]} Nc3 {[%emt 0:02:08]} 21. Kf2 {[%emt 0:
00:00]} Rxe2+ {[%emt 0:00:08]} 0-1

[Event "44th Chess Olympiad Women 2022"]
[Site "Chennai"]
[Date "2022.08.06"]
[Round "8.45"]
[White "Chuemsakul, Sarocha"]
[Black "Hernandez Alvarez, Tania Regla"]
[Result "0-1"]
[WhiteElo "1684"]
[BlackElo "2058"]
[Annotator "NA RC"]
[PlyCount "124"]
[EventDate "2022.??.??"]
[TimeControl "60"]

1. Nf3 {[%emt 0:00:09]} Nf6 {[%emt 0:00:11]} 2. g3 {[%emt 0:00:13]} e6 {
[%emt 0:00:14]} 3. Bg2 {[%emt 0:00:18]} d5 {[%emt 0:00:09]} 4. O-O {[%emt 0:00:
00]} Be7 {[%emt 0:00:12]} 5. c4 {[%emt 0:00:34]} d4 {[%emt 0:01:45]} 6. d3 {
[%emt 0:00:59]} O-O {[%emt 0:00:54]} 7. a3 {[%emt 0:01:04]} a5 {[%emt 0:00:55]}
8. Bg5 {[%emt 0:01:49]} c5 {[%emt 0:00:22]} 9. Nbd2 {[%emt 0:01:09]} Nc6 {
[%emt 0:00:36]} 10. Qc2 {[%emt 0:02:08]} e5 {[%emt 0:00:33]} 11. e3 {[%emt 0:
00:00]} h6 {[%emt 0:06:41]} 12. Bxf6 {[%emt 0:00:26]} Bxf6 {[%emt 0:00:02]} 13.
Rab1 {[%emt 0:09:54]} a4 {[%emt 0:00:44]} 14. exd4 {[%emt 0:03:06]} cxd4 {
[%emt 0:00:44]} 15. Rfe1 {[%emt 0:03:39]} Qc7 {[%emt 0:02:00]} 16. b4 {[%emt 0:
00:00]} axb3 {[%emt 0:00:14]} 17. Rxb3 {[%emt 0:00:23]} Be7 {[%emt 0:00:43]}
18. Qb2 {[%emt 0:04:59]} Ra7 {[%emt 0:01:27]} 19. Rb1 {[%emt 0:02:04]} f5 {
[%emt 0:03:06]} 20. h3 {[%emt 0:08:29]} Bc5 {[%emt 0:08:10]} 21. Ne1 {[%emt 0:
00:00]} Na5 {[%emt 0:03:39]} 22. Rb4 {[%emt 0:04:23]} Qe7 {[%emt 0:07:03]} 23.
Nc2 {[%emt 0:03:53]} Bxb4 {[%emt 0:05:08]} 24. axb4 {[%emt 0:00:20]} Nc6 {
[%emt 0:00:07]} 25. b5 {[%emt 0:02:48]} Nb8 {[%emt 0:04:16]} 26. Re1 {[%emt 0:
00:00]} Qd6 {[%emt 0:00:41]} 27. Nb4 {[%emt 0:05:54]} Nd7 {[%emt 0:01:36]} 28.
Nf3 {[%emt 0:06:26]} Kh7 {[%emt 0:03:49]} 29. Nd5 {[%emt 0:06:33]} Ra3 {
[%emt 0:10:14]} 30. Qe2 {[%emt 0:00:33]} Rb3 {[%emt 0:00:47]} 31. Bf1 {[%emt 0:
00:00]} e4 {[%emt 0:12:38]} 32. dxe4 {[%emt 0:03:41]} d3 {[%emt 0:02:01]} 33.
Qd1 {[%emt 0:01:20]} fxe4 {[%emt 0:00:34]} 34. Nd2 {[%emt 0:04:27]} Rb2 {
[%emt 0:00:24]} 35. Nxe4 {[%emt 0:00:31]} Qb8 {[%emt 0:02:28]} 36. Qxd3 {
[%emt 0:00:22]} Kh8 {[%emt 0:00:28]} 37. Qa3 {[%emt 0:00:43]} Qe5 {[%emt 0:00:
00]} 38. Bd3 {[%emt 0:00:31]} Rbxf2 {[%emt 0:01:14]} 39. Qc3 {[%emt 0:00:29]}
Qxc3 {[%emt 0:02:31]} 40. Ndxc3 {[%emt 0:00:01]} Rb2 {[%emt 0:01:20]} 41. Be2 {
[%emt 0:30:57]} Ne5 {[%emt 0:30:27]} 42. Kg2 {[%emt 0:00:00]} Nxc4 {[%emt 0:00:
00]} 43. g4 {[%emt 0:00:00]} Ne3+ {[%emt 0:00:00]} 44. Kg3 {[%emt 0:00:00]} Rd8
{[%emt 0:00:00]} 45. Ra1 {[%emt 0:00:00]} Be6 {[%emt 0:00:00]} 46. Ra4 {
[%emt 0:00:00]} b6 {[%emt 0:00:00]} 47. h4 {[%emt 0:00:00]} Rc2 {[%emt 0:00:00]
} 48. h5 {[%emt 0:00:00]} Rc8 {[%emt 0:00:00]} 49. Ra3 {[%emt 0:00:00]} Nd5 {
[%emt 0:00:00]} 50. Nxd5 {[%emt 0:01:25]} Bxd5 {[%emt 0:00:00]} 51. Re3 {
[%emt 0:01:31]} Re8 {[%emt 0:02:26]} 52. Bd3 {[%emt 0:00:11]} Rc3 {[%emt 0:00:
00]} 53. Kf4 {[%emt 0:02:55]} Rb3 {[%emt 0:02:14]} 54. Nd2 {[%emt 0:00:31]}
Rb4+ {[%emt 0:02:08]} 55. Be4 {[%emt 0:00:29]} Bxe4 {[%emt 0:00:47]} 56. Nxe4 {
[%emt 0:00:01]} Rxb5 {[%emt 0:00:15]} 57. Rc3 {[%emt 0:00:43]} Rb4 {[%emt 0:00:
00]} 58. Re3 {[%emt 0:00:04]} Kg8 {[%emt 0:00:19]} 59. Kf3 {[%emt 0:00:19]}
Rbxe4 {[%emt 0:00:10]} 60. Rxe4 {[%emt 0:00:09]} Rxe4 {[%emt 0:00:10]} 61. Kxe4
{[%emt 0:00:03]} Kf7 {[%emt 0:00:19]} 62. Ke5 {[%emt 0:00:48]} b5 {[%emt 0:00:
00]} 0-1

[Event "44th Chess Olympiad Women 2022"]
[Site "Chennai"]
[Date "2022.08.06"]
[Round "8.45"]
[White "Diaz Charpentier, Kristel Meliss"]
[Black "Prommuang, Araya"]
[Result "1-0"]
[WhiteElo "1989"]
[BlackElo "1651"]
[Annotator "NA RC"]
[PlyCount "85"]
[EventDate "2022.??.??"]
[TimeControl "60"]

1. Nf3 {[%emt 0:00:14]} Nf6 {[%emt 0:00:31]} 2. c4 {[%emt 0:00:05]} e6 {
[%emt 0:00:22]} 3. g3 {[%emt 0:00:05]} d5 {[%emt 0:00:32]} 4. Bg2 {[%emt 0:00:
00]} Be7 {[%emt 0:00:21]} 5. O-O {[%emt 0:00:04]} O-O {[%emt 0:00:12]} 6. b3 {
[%emt 0:00:08]} d4 {[%emt 0:00:18]} 7. e3 {[%emt 0:00:13]} c5 {[%emt 0:00:25]}
8. exd4 {[%emt 0:00:05]} cxd4 {[%emt 0:00:16]} 9. d3 {[%emt 0:00:03]} Nc6 {
[%emt 0:00:53]} 10. Re1 {[%emt 0:01:28]} Nd7 {[%emt 0:03:07]} 11. Na3 {[%emt 0:
00:00]} e5 {[%emt 0:04:56]} 12. Nc2 {[%emt 0:00:06]} f5 {[%emt 0:10:16]} 13. b4
{[%emt 0:02:30]} Bf6 {[%emt 0:04:49]} 14. b5 {[%emt 0:01:10]} Ne7 {[%emt 0:00:
00]} 15. Rb1 {[%emt 0:04:19]} Qc7 {[%emt 0:12:07]} 16. Ba3 {[%emt 0:05:51]} Nc5
{[%emt 0:04:10]} 17. Bxc5 {[%emt 0:11:44]} Qxc5 {[%emt 0:01:04]} 18. Nd2 {
[%emt 0:00:07]} Rb8 {[%emt 0:13:09]} 19. Nb4 {[%emt 0:07:02]} Be6 {[%emt 0:00:
00]} 20. Qa4 {[%emt 0:02:11]} Nc8 {[%emt 0:04:42]} 21. Nb3 {[%emt 0:03:44]} Qe7
{[%emt 0:02:05]} 22. c5 {[%emt 0:09:14]} Qf7 {[%emt 0:05:53]} 23. Nxd4 {
[%emt 0:04:11]} Ne7 {[%emt 0:04:53]} 24. Nxe6 {[%emt 0:00:53]} Qxe6 {[%emt 0:
00:00]} 25. Qxa7 {[%emt 0:00:29]} Qc8 {[%emt 0:05:18]} 26. Rec1 {[%emt 0:02:00]
} Bg5 {[%emt 0:01:50]} 27. Rc2 {[%emt 0:00:24]} f4 {[%emt 0:00:48]} 28. Nd5 {
[%emt 0:07:41]} f3 {[%emt 0:01:16]} 29. Nxe7+ {[%emt 0:00:06]} Bxe7 {[%emt 0:
00:00]} 30. Bf1 {[%emt 0:00:11]} Ra8 {[%emt 0:01:17]} 31. Qb6 {[%emt 0:00:08]}
Rf6 {[%emt 0:01:04]} 32. c6 {[%emt 0:00:13]} Rb8 {[%emt 0:00:54]} 33. Qa7 {
[%emt 0:04:09]} Bf8 {[%emt 0:00:39]} 34. Rbc1 {[%emt 0:01:32]} bxc6 {[%emt 0:
00:00]} 35. Rxc6 {[%emt 0:00:17]} Rxc6 {[%emt 0:00:20]} 36. Rxc6 {[%emt 0:00:
00]} Qe8 {[%emt 0:00:14]} 37. Qa4 {[%emt 0:01:24]} Be7 {[%emt 0:01:00]} 38.
Qc4+ {[%emt 0:00:19]} Kh8 {[%emt 0:00:02]} 39. a4 {[%emt 0:00:24]} Qd8 {
[%emt 0:00:45]} 40. b6 {[%emt 0:00:43]} Bf8 {[%emt 0:00:28]} 41. a5 {[%emt 0:
00:00]} Rb7 {[%emt 0:30:53]} 42. Rc8 {[%emt 0:02:30]} Qe7 {[%emt 0:00:00]} 43.
Rc7 {[%emt 0:00:00]} 1-0

[Event "44th Chess Olympiad Women 2022"]
[Site "Chennai"]
[Date "2022.08.06"]
[Round "8.45"]
[White "Mayorga Araya, Sofia"]
[Black "Buhagiar, Melita Sunan"]
[Result "0-1"]
[WhiteElo "1758"]
[BlackElo "1431"]
[Annotator "NA RC"]
[PlyCount "122"]
[EventDate "2022.??.??"]
[TimeControl "60"]

1. e4 {[%emt 0:00:03]} c5 {[%emt 0:00:06]} 2. Nf3 {[%emt 0:00:06]} d6 {[%emt 0:
00:00]} 3. c3 {[%emt 0:00:07]} Nf6 {[%emt 0:01:49]} 4. Be2 {[%emt 0:00:06]} Nc6
{[%emt 0:00:49]} 5. d4 {[%emt 0:00:09]} cxd4 {[%emt 0:03:18]} 6. cxd4 {[%emt 0:
00:00]} g6 {[%emt 0:02:05]} 7. Nc3 {[%emt 0:00:18]} Bg7 {[%emt 0:01:03]} 8. O-O
{[%emt 0:00:12]} O-O {[%emt 0:01:08]} 9. h3 {[%emt 0:00:22]} a6 {[%emt 0:01:11]
} 10. Bf4 {[%emt 0:01:26]} b5 {[%emt 0:02:39]} 11. a3 {[%emt 0:01:59]} Bb7 {
[%emt 0:02:12]} 12. Qc2 {[%emt 0:09:32]} Nd7 {[%emt 0:06:59]} 13. Rad1 {
[%emt 0:01:51]} Rc8 {[%emt 0:05:32]} 14. Qb1 {[%emt 0:08:24]} Na5 {[%emt 0:00:
00]} 15. e5 {[%emt 0:06:06]} dxe5 {[%emt 0:01:02]} 16. dxe5 {[%emt 0:00:02]} e6
{[%emt 0:01:16]} 17. Ne4 {[%emt 0:05:16]} Bxe4 {[%emt 0:04:05]} 18. Qxe4 {
[%emt 0:00:01]} Qc7 {[%emt 0:06:54]} 19. Rc1 {[%emt 0:13:21]} Qb8 {[%emt 0:00:
00]} 20. b4 {[%emt 0:00:46]} Nb7 {[%emt 0:01:59]} 21. Qd4 {[%emt 0:00:31]} Rfd8
{[%emt 0:19:12]} 22. Rxc8 {[%emt 0:05:50]} Qxc8 {[%emt 0:00:07]} 23. Qa7 {
[%emt 0:01:53]} Qa8 {[%emt 0:02:31]} 24. Qe3 {[%emt 0:00:49]} Qb8 {[%emt 0:00:
00]} 25. Rc1 {[%emt 0:01:31]} Rc8 {[%emt 0:02:43]} 26. Bd3 {[%emt 0:19:48]}
Rxc1+ {[%emt 0:03:53]} 27. Qxc1 {[%emt 0:00:01]} Nd8 {[%emt 0:01:13]} 28. Qe3 {
[%emt 0:03:58]} Nc6 {[%emt 0:01:24]} 29. Be4 {[%emt 0:06:30]} Ncxe5 {[%emt 0:
00:00]} 30. Nxe5 {[%emt 0:00:18]} Bxe5 {[%emt 0:00:35]} 31. Bxe5 {[%emt 0:00:
00]} Nxe5 {[%emt 0:01:46]} 32. Qc5 {[%emt 0:04:37]} Nc4 {[%emt 0:02:18]} 33. a4
{[%emt 0:01:01]} Qd6 {[%emt 0:01:17]} 34. axb5 {[%emt 0:03:06]} axb5 {[%emt 0:
00:00]} 35. Qxb5 {[%emt 0:01:10]} Qd1+ {[%emt 0:00:19]} 36. Kh2 {[%emt 0:00:08]
} Qd6+ {[%emt 0:00:31]} 37. g3 {[%emt 0:00:17]} Qd4 {[%emt 0:00:44]} 38. Bg2 {
[%emt 0:00:46]} Ne5 {[%emt 0:00:27]} 39. Qc5 {[%emt 0:01:15]} Qb2 {[%emt 0:00:
00]} 40. b5 {[%emt 0:00:41]} Nd3 {[%emt 0:00:11]} 41. Qc6 {[%emt 0:02:36]} Ne5
{[%emt 0:05:14]} 42. Qa6 {[%emt 0:00:45]} Qxf2 {[%emt 0:04:02]} 43. Qb7 {
[%emt 0:03:17]} Kg7 {[%emt 0:03:58]} 44. b6 {[%emt 0:00:17]} Nc4 {[%emt 0:00:
00]} 45. Qc7 {[%emt 0:12:00]} Nxb6 {[%emt 0:02:05]} 46. Qc3+ {[%emt 0:01:14]}
Qf6 {[%emt 0:01:34]} 47. Qb4 {[%emt 0:01:27]} Nd5 {[%emt 0:02:36]} 48. Bxd5 {
[%emt 0:05:41]} exd5 {[%emt 0:00:09]} 49. Qc5 {[%emt 0:02:01]} Qe5 {[%emt 0:00:
00]} 50. h4 {[%emt 0:02:47]} Qe4 {[%emt 0:00:29]} 51. Kg1 {[%emt 0:03:08]} d4 {
[%emt 0:00:24]} 52. h5 {[%emt 0:00:40]} Kf6 {[%emt 0:05:11]} 53. Qd6+ {[%emt 0:
00:00]} Kg5 {[%emt 0:01:07]} 54. hxg6 {[%emt 0:00:38]} hxg6 {[%emt 0:00:35]}
55. Qd8+ {[%emt 0:00:19]} f6 {[%emt 0:01:39]} 56. Qa5+ {[%emt 0:00:36]} Qe5 {
[%emt 0:01:48]} 57. Qb4 {[%emt 0:00:40]} Qxg3+ {[%emt 0:00:33]} 58. Kh1 {
[%emt 0:00:14]} Qe3 {[%emt 0:01:01]} 59. Qa5+ {[%emt 0:00:17]} Kg4 {[%emt 0:00:
00]} 60. Qa6 {[%emt 0:00:47]} Kg3 {[%emt 0:01:50]} 61. Qd6+ {[%emt 0:00:42]}
Qf4 {[%emt 0:01:34]} 0-1

[Event "44th Chess Olympiad Women 2022"]
[Site "Chennai"]
[Date "2022.08.06"]
[Round "8.46"]
[White "Hughes, Rhian"]
[Black "Cadeau, Merisena"]
[Result "1-0"]
[WhiteElo "1843"]
[BlackElo "1439"]
[Annotator "NA RC"]
[PlyCount "107"]
[EventDate "2022.??.??"]
[TimeControl "60"]

1. c4 {[%emt 0:00:03]} e5 {[%emt 0:00:27]} 2. Nc3 {[%emt 0:00:07]} Nf6 {
[%emt 0:00:11]} 3. g3 {[%emt 0:00:07]} d5 {[%emt 0:00:48]} 4. cxd5 {[%emt 0:00:
00]} Nxd5 {[%emt 0:00:09]} 5. Bg2 {[%emt 0:01:14]} Be6 {[%emt 0:00:58]} 6. Nf3
{[%emt 0:06:32]} Nc6 {[%emt 0:00:19]} 7. O-O {[%emt 0:03:16]} Bc5 {[%emt 0:00:
00]} 8. d3 {[%emt 0:02:39]} O-O {[%emt 0:05:04]} 9. Bd2 {[%emt 0:17:34]} h6 {
[%emt 0:00:57]} 10. Rc1 {[%emt 0:07:19]} Bb6 {[%emt 0:02:20]} 11. Na4 {[%emt 0:
00:00]} Qd7 {[%emt 0:05:26]} 12. Nc5 {[%emt 0:03:48]} Bxc5 {[%emt 0:01:41]} 13.
Rxc5 {[%emt 0:00:09]} f5 {[%emt 0:00:45]} 14. a3 {[%emt 0:10:24]} e4 {[%emt 0:
00:00]} 15. Ne1 {[%emt 0:07:43]} Nf6 {[%emt 0:09:17]} 16. Be3 {[%emt 0:07:42]}
b6 {[%emt 0:08:53]} 17. Rc1 {[%emt 0:00:55]} Rac8 {[%emt 0:07:48]} 18. Qa4 {
[%emt 0:04:06]} Bd5 {[%emt 0:00:22]} 19. dxe4 {[%emt 0:01:43]} fxe4 {[%emt 0:
00:00]} 20. Nc2 {[%emt 0:01:01]} Qe7 {[%emt 0:05:55]} 21. Nd4 {[%emt 0:01:33]}
Ne5 {[%emt 0:04:40]} 22. Bh3 {[%emt 0:02:47]} Nfg4 {[%emt 0:02:14]} 23. Bf4 {
[%emt 0:01:50]} g5 {[%emt 0:04:21]} 24. Bxe5 {[%emt 0:01:05]} Qxe5 {[%emt 0:00:
00]} 25. Bxg4 {[%emt 0:00:19]} Ra8 {[%emt 0:01:10]} 26. b4 {[%emt 0:02:21]}
Qxd4 {[%emt 0:01:02]} 27. Qd7 {[%emt 0:02:55]} Qe5 {[%emt 0:04:40]} 28. Rxc7 {
[%emt 0:02:08]} Rf7 {[%emt 0:00:55]} 29. Rc8+ {[%emt 0:00:45]} Rxc8 {[%emt 0:
00:00]} 30. Qxc8+ {[%emt 0:00:07]} Kg7 {[%emt 0:00:31]} 31. Qc2 {[%emt 0:02:00]
} Rc7 {[%emt 0:00:58]} 32. Qd2 {[%emt 0:00:56]} Rc3 {[%emt 0:01:27]} 33. Rd1 {
[%emt 0:01:16]} Bc6 {[%emt 0:02:44]} 34. Rc1 {[%emt 0:02:34]} Rxc1+ {[%emt 0:
00:00]} 35. Qxc1 {[%emt 0:00:05]} Qd5 {[%emt 0:00:22]} 36. f3 {[%emt 0:01:45]}
exf3 {[%emt 0:00:37]} 37. Bxf3 {[%emt 0:00:27]} Qd4+ {[%emt 0:00:54]} 38. e3 {
[%emt 0:00:17]} Qe5 {[%emt 0:00:43]} 39. Bxc6 {[%emt 0:00:16]} Qc7 {[%emt 0:00:
00]} 40. b5 {[%emt 0:00:10]} Qe7 {[%emt 0:00:17]} 41. Qc3+ {[%emt 0:30:18]} Kg6
{[%emt 0:30:24]} 42. Qd3+ {[%emt 0:01:12]} Kg7 {[%emt 0:01:20]} 43. Qd7 {
[%emt 0:00:09]} Qxd7 {[%emt 0:00:20]} 44. Bxd7 {[%emt 0:00:07]} Kf6 {[%emt 0:
00:00]} 45. Bc6 {[%emt 0:00:07]} Ke5 {[%emt 0:00:19]} 46. Kf2 {[%emt 0:00:25]}
Ke6 {[%emt 0:01:42]} 47. e4 {[%emt 0:00:16]} Ke5 {[%emt 0:00:00]} 48. Ke3 {
[%emt 0:00:00]} Ke6 {[%emt 0:00:00]} 49. Kd4 {[%emt 0:00:00]} Kd6 {[%emt 0:00:
00]} 50. e5+ {[%emt 0:00:00]} Ke6 {[%emt 0:00:00]} 51. a4 {[%emt 0:00:00]} Ke7
{[%emt 0:00:00]} 52. Kd5 {[%emt 0:00:00]} h5 {[%emt 0:00:00]} 53. Ke4 {[%emt 0:
00:00]} Ke6 {[%emt 0:00:00]} 54. Bd5+ {[%emt 0:00:00]} 1-0